Cogmind - Beta 17.1 @@@ ROGUE MODE // 2026.09.20 @ 21:52:56 Player: Robotulon Result: Destroyed self via exploding Nuclear Reactor Performance ------------- Evolutions (0) 0 Regions Visited (1) 200 Robots Destroyed (13) 65 Value Destroyed (179) 179 Prototype IDs (0) 0 Alien Tech Used (0) 0 Bonus (0) 0 TOTAL SCORE: 444 Bonus ------- None Cogmind --------- Core Integrity 0/250 Matter 300/300 Energy 84/100 System Corruption 1% Temperature Cool (66) Movement Core (100) Ox1 Location -10/Materials Parts ------- > --- POWER (1) -------- (None) > --- PROPULSION (2) --- (None) > --- UTILITY (2) ------ Small Storage Unit > --- WEAPON (2) ------- (None) > --- INVENTORY (8) ---- Ion Engine Light Ion Engine Light Treads Light Assault Rifle Peak State ------------ > --- POWER ------------ Light Ion Engine > --- PROPULSION ------- Light Treads Light Treads > --- UTILITY ---------- Small Storage Unit > --- WEAPON ----------- Medium Laser Light Assault Rifle > --- INVENTORY -------- (None) [Rating: 6] Favorites ----------- Power Ion Engine Engine Ion Engine Propulsion Light Treads Treads Light Treads Hover Unit Hover Unit Utility Small Storage Unit Storage Small Storage Unit Weapon Medium Laser Energy Gun Medium Laser Ballistic Gun Light Assault Rifle Build | -11 -10 ------- Run | Yrd Mat Slots Evolved . | . . Power . | . . Propulsion . | . . Utility . | . . Weapon . | . . Parts Attached 9 | 7 2 Power 2 | 2 . Engine 2 | 2 . Core . | . . Reactor . | . . Propulsion 3 | 2 1 Treads 2 | 2 . Leg . | . . Wheel . | . . Hover 1 | . 1 Flight . | . . Utility 1 | 1 . Device . | . . Storage 1 | 1 . Processor . | . . Hackware . | . . Protection . | . . Artifact . | . . Weapon 3 | 2 1 Energy Gun 2 | 1 1 Energy Cannon . | . . Ballistic Gun 1 | 1 . Ballistic Cannon . | . . Launcher . | . . Special Weapon . | . . Impact Weapon . | . . Slashing Weapon . | . . Piercing Weapon . | . . Special Melee Weapon . | . . Unidentified Prototypes . | . . Parts Lost 3 | . 3 Power . | . . Propulsion 1 | . 1 Utility . | . . Weapon 2 | . 2 Highest Loss Streak 3 | . 3 To Critical Strikes . | . . Average Backups 1 | . 2 Power 1 | . 1 Propulsion . | . . Utility . | . . Weapon . | . . Tool/Special . | . . Unused Backups 1 | . 1 Power 1 | . 1 Propulsion . | . . Utility . | . . Weapon . | . . Tool/Special . | . . Average Slot Usage (%) 81 | . 81 Engine 13 | . 13 Treads 22 | . 22 Hover 3 | . 3 Storage 14 | . 14 Energy Gun 22 | . 22 Ballistic Gun 5 | . 5 Peak Build Rating 6 | 6 6 Average Rating 5 | 4 5 On Entrance 3 | . 6 Avg Prop Armor Cover (%) . | . . Naked Turns . | . . Heaviest Build 13 | 13 13 Greatest Support 40 | 40 40 Greatest Overweight (x) 2 | . 2 Average Overweight (x) . | . . Largest Inventory Capacity 8 | 8 8 Average Capacity 7 | 6 8 Most Carried 4 | 2 4 Average Carried 1 | . 2 Final Capacity 8 | 8 8 Final Carried 4 | 1 4 Class Distribution -------------------- 100% | Mutant Dominant Class ---------------- Mutant | -10/Materials Resources | -11 -10 ----------- Run | Yrd Mat Matter Collected 342 | 185 157 Remotely . | . . Salvage Created 232 | . 232 Parts 30 | . 30 Haulers Intercepted 1 | . 1 Recyclers Shooed . | . . Parts Field Recycled . | . . Retrieved Matter . | . . Parts Self-Destructed . | . . Prevented . | . . Parts Restored . | . . Kills | -11 -10 ------- Run | Yrd Mat Combat Hostiles Destroyed 6 | . 6 Guns 4 | . 4 AOE 2 | . 2 Classes Destroyed 7 | . 7 Worker 1 | . 1 Builder 2 | . 2 Hauler 1 | . 1 Recycler 1 | . 1 Watcher 2 | . 2 Swarmer 4 | . 4 Grunt 2 | . 2 Best Kill Streak 7 | . 7 Combat Bots Only 3 | . 3 Max Kills in Single Turn 6 | . 6 Gunslinging . | . . Exploded 2 | . 2 Melee . | . . Uniques/NPCs Destroyed . | . . Combat | -11 -10 -------- Run | Yrd Mat Hostile Shots Fired 53 | . 53 Missed 11 | . 11 Hits 42 | . 42 Projectile 42 | . 42 Damage Taken 592 | . 592 Core 281 | . 281 Absorbed by Shields . | . . Core Remaining (%) 100 | 100 . Volleys Fired 27 | . 27 Largest 2 | . 2 Hottest 90 | . 90 Shots Fired 54 | . 54 Gun 54 | . 54 Cannon . | . . Launcher . | . . Special . | . . Kinetic 10 | . 10 Thermal 44 | . 44 Explosive . | . . Electromagnetic . | . . Robot Hit Streak 5 | . 5 Robot Miss Streak 4 | . 4 Penetration Max . | . . Secondary Targets 1 | . 1 Max Gunslinging Chain 1 | . 1 Shots Hit Robots 25 | . 25 Core Hits 17 | . 17 Critical Kills . | . . Critical Parts Destroyed . | . . Critical Strikes . | . . Melee Attacks . | . . Impact . | . . Slashing . | . . Piercing . | . . Sneak Attacks . | . . Combat Hostiles . | . . Follow-up Attacks . | . . Damage Inflicted 878 | . 878 Guns 317 | . 317 Cannons . | . . Explosions 561 | . 561 Melee . | . . Ramming . | . . Kinetic 39 | . 39 Thermal 278 | . 278 Explosive 561 | . 561 Electromagnetic . | . . Impact . | . . Slashing . | . . Piercing . | . . Highest Corruption 1 | . 1 Average Corruption 1 | . 1 Corruption Purged . | . . Corruption Blocked . | . . Effects 4 | . 4 Message Errors 1 | . 1 Matter Fused 1 | . 1 Heat Flow Errors 1 | . 1 Data Loss (minor) 1 | . 1 Overload Shots . | . . Overflow Damage 133 | . 133 Projectiles . | . . Explosions 133 | . 133 Melee . | . . Knockbacks . | . . Impact . | . . Kinetic . | . . Secondary . | . . Self-Inflicted Damage 202 | . 202 Shots 2 | . 2 Rammed . | . . Targets Rammed . | . . Kicked . | . . Crushed . | . . Highest Temperature 406 | . 406 Average Temperature 145 | . 145 Received Heat Transfer 96 | . 96 Effects 3 | . 3 Shutdowns 1 | . 1 Matter Decay 1 | . 1 Damage (minor) 1 | . 1 Siege Activations . | . . Martial Activations . | . . Shielding Activations . | . . Robots Disrupted . | . . Combat Hostiles . | . . Robots Corrupted . | . . Combat Hostiles . | . . Parts Fried . | . . Impact Corruptions . | . . Robots Melted . | . . Combat Hostiles . | . . Parts Melted 1 | . 1 Heat Transferred 756 | . 756 Parts Sabotaged . | . . Parts Stolen . | . . Parts Stripped . | . . Power Chain Reactions . | . . Alert | -11 -10 ------- Run | Yrd Mat Maximum Alert Level . | . . Low Security (%) 100 | 100 100 Level 1 . | . . Level 2 . | . . Level 3 . | . . Level 4 . | . . Level 5 . | . . High Security . | . . Max Security . | . . Peak Influence 93 | . 93 Initial . | . . Average 29 | . 44 Influence Increases 280 | . 280 Destroy 0b10 Robot/C 120 | . 120 Destroy 0b10 Robot/NC 35 | . 35 Destroy Leader 26 | . 26 Successful Hack 28 | . 28 Disable Machine 30 | . 30 Destroy Structure 11 | . 11 Lose Combat Pursuer 30 | . 30 Influence Decreases 130 | . 130 Time Decay 100 | . 100 Lost Part 30 | . 30 Squads Dispatched . | . . Investigation . | . . Extermination . | . . Reinforcement . | . . Assault . | . . Garrison . | . . Intercept . | . . Searches Triggered . | . . Construction Impeded . | . . Haulers Reinforced . | . . Active Scanning Responses . | . . Cargo Convoy Interrupts . | . . Stealth | -11 -10 --------- Run | Yrd Mat Distress Signals . | . . Communications Jammed . | . . Distress Signals . | . . Times Spotted 12 | . 12 Peak Tracking Total 4 | . 4 Tactical Retreats 1 | . 1 Traps | -11 -10 ------- Run | Yrd Mat Traps Triggered 1 | . 1 Indirectly . | . . Trap Hack Attempts . | . . Triggered . | . . Disarmed . | . . Reprogrammed . | . . Reused . | . . Traps Extracted . | . . Installed . | . . Triggered . | . . Machines | -11 -10 ---------- Run | Yrd Mat Machines Disabled 2 | . 2 Max in Single Turn 2 | . 2 Machines Repaired . | . . Machines Dismantled . | . . Machines Sabotaged . | . . Overloaded Fab Kills . | . . Hacking | -11 -10 --------- Run | Yrd Mat Machines Accessed 1 | . 1 Terminals 1 | . 1 Fabricators . | . . Repair Stations . | . . Recycling Units . | . . Scanalyzers . | . . Garrison Access . | . . Total Hacks 3 | . 3 Successful 3 | . 3 Failed . | . . Catastrophic . | . . Database Lockouts . | . . Manual . | . . Terminals 3 | . 3 Fabricators . | . . Repair Stations . | . . Recycling Units . | . . Scanalyzers . | . . Garrison Access . | . . Terminal Hacks 3 | . 3 Locate Traps 1 | . 1 Transport Status 1 | . 1 Investigation Status 1 | . 1 Fabricator Hacks . | . . Repair Station Hacks . | . . Recycling Unit Hacks . | . . Scanalyzer . | . . Garrison Access Hacks . | . . Unauthorized Hacks . | . . Terminals . | . . Fabricators . | . . Repair Stations . | . . Recycling Units . | . . Scanalyzers . | . . Garrison Access . | . . Data Cores Recovered . | . . Used . | . . Hacking Detections 1 | . 1 Full Trace Events 1 | . 1 Feedback Events 1 | . 1 Corruption 1 | . 1 Feedback Blocked . | . . Robot Schematics Acquired . | . . Robots Built . | . . Authchips . | . . Time . | . . Total Robot Build Rating . | . . Part Schematics Acquired . | . . Parts Built . | . . Authchips . | . . Time . | . . Total Part Build Rating . | . . Part Studies Acquired . | . . Parts Repaired . | . . Time . | . . Parts Recycled . | . . Recycled Matter . | . . Retrieved Matter . | . . Retrieved Components . | . . Parts Scanalyzed . | . . Part Schematics Acquired . | . . Parts Damaged . | . . Bothacking | -11 -10 ------------ Run | Yrd Mat Used RIF Installer . | . . Robots Hacked . | . . Non-combat . | . . Combat . | . . Robot Hacks Applied . | . . Relay Couplers Released . | . . Fabnet Peak Effective % . | . . Robots Rewired . | . . Allies Hacked . | . . Hacks Repelled . | . . Allies | -11 -10 -------- Run | Yrd Mat Total Allies . | . . Largest Group . | . . Highest-Rated Group . | . . Highest-Rated Ally . | . . Total Orders . | . . Ally Attacks . | . . Total Damage . | . . Kills . | . . Allies Corrupted . | . . Allies Melted . | . . Intel | -11 -10 ------- Run | Yrd Mat Active Infowar (turns) . | . . Robot Analysis Total . | . . Derelict Logs Recovered . | . . Drone Launches . | . . Drone Recoveries . | . . Exploration | -11 -10 ------------- Run | Yrd Mat Turns Passed 324 | 108 216 Spaces Moved 148 | 68 80 Core 17 | 17 . Treads 114 | 51 63 Legs . | . . Wheels . | . . Hover 17 | . 17 Flight . | . . Fastest Speed 50 | 50 160 Average Speed 149 | 132 164 Slowest Speed 180 | 160 180 Overloaded Moves . | . . Propulsion Burnouts . | . . Robots Hopped . | . . Potential Cave-ins . | . . Cave-ins Triggered . | . . Exploration Rate (%) 15 | 4 26 Regions Visited 1 Branch Regions . Pre-discovered Areas . | . . Known Exits Taken . | . . Unknown Exits Taken 1 | 1 . Scrap Searched . | . . Spaces Dug . | . . Terrain Destroyed 10 | . 10 Melee . | . . Projectile . | . . AOE 10 | . 10 Terrain Rammed . | . . Walls Destroyed . | . . Machines Disabled . | . . Actions | -11 -10 --------- Run | Yrd Mat Total 199 | 86 113 Wait 5 | 5 . Move 147 | 67 80 Hop . | . . Pick Up 10 | 7 3 Fast Attach . | . . Attach 6 | 6 . Detach . | . . Swap 3 | 1 2 Drop 1 | . 1 Fire 27 | . 27 Melee . | . . Ram . | . . Kick . | . . Crush . | . . Escape Stasis . | . . Rewire . | . . Trap . | . . Miscellaneous . | . . Route ------- -11/Scrapyard -10/Materials History --------- Turn | Location | Event 44 | -11/Scrapyard | Discovered new exit (range 14) 109 | -11/Scrapyard | Entered Materials 301 | -10/Materials | Build established: Mutant 325 | -10/Materials | Destroyed self via exploding Nuclear Reactor Last Messages --------------- Acquired 14 matter. Triggered Blade Trap. Massive razor-sharp blades shoot up from within the floor. Ion Engine severed. R-06 Scavenger collects Flight Unit. U-05 Engineer lays Concrete. Nuclear Reactor explodes. Sml. Laser destroyed. Destroyed Sml. Laser. Med. Laser destroyed. [Achievement: Overwhelming] Destroyed Med. Laser. Hover Unit destroyed. Destroyed Hover Unit. Destroyed Lgt. Assault Rifle. S-10 Pest destroyed. U-05 Engineer destroyed. Nuclear Reactor explodes. R-06 Scavenger destroyed. A-02 Transporter destroyed. Map ----- +----------------------------------------------------+ | ?????????????????????????????????????????????????? | | ?????????????????????????????????????????????????? | | ?????????????????????????????????????????????????? | | ?????????????????????????????????????????????????? | | ?????????????????????????????????????????????????? | | ?????????????????????????????????????????????????? | | ?????????????????????????????????????????????????? | | ?????????????????????????????????????????????????? | | ?????????????????????????????????????????????????? | | ?????????????????????????????????????????????????? | | ??????????????????????? ?????????????????????????? | | ????????????????????? ?????????????????????????? | | ????????????????????# ?????????????????????????? | | ????????????????????# ###+####?????????????????? | | ????????????????????# #?????????????????? | | ????????????????????# +?????????????????? | | ???????????? ???????# g T #?????????????????? | | ???????????? ???????# #?????????????????? | | ???????????# ???????# #?????????????????? | | ???????????# ???????# #?????????????????? | | ???????????# ???????# m #?????????????????? | | ???????????# ???????# #?????????????????? | | ???????????# ???????# #?????????????????? | | ??? ???????# #?????## !##### #???????????? | | ??? ???????# ####??# !!= #???????????? | | ??? ???????# #??# %@ =!%! #?????????? | | ??#+#??????# #??# !=== =!!! + ????????? | | ### #??????# #??# *|%[ =! * #?????????? | | # #??????# #??# %* #?????????? | | " # #??????# #??## [ #?????????? | | " # ######## #### ??????????? | | " + ########## ??????????? | | # ######## ######????????????????????? | | # #??????# #?????????????????????????? | | +## #??????# #?????????????????????????? | | #??????######### #?????????????????????????? | | #??????????????# #?????????????????????????? | | *#??????????????# #?????????????????????????? | | #??????????????# #?????????????????????????? | | ##+####???????????# #?????????????????????????? | | # #???????????# #?????????????????????????? | | # #???????????# #?????????????????????????? | | # #???????????+ #?????????????????????????? | | # #???????????# #?????????????????????????? | | # #???????????# #?????????????????????????? | | # #???????????? #?????????????????????????? | | + #???????????? ??????????????????????????? | | # #?????????????????????????????????????????? | | ## #?????????????????????????????????????????? | | ?# #?????????????????????????????????????????? | +----------------------------------------------------+ Best States ------------- Heat Dissipation 25 Energy Generation 10 Energy Capacity 250 Matter Stores 300 Matter Capacity 300 Sight Range 16 Terrain Scan Density 10 Evasion (%) 40 Recoil Reduction 2 Item Schematics ----------------- None Robot Schematics ------------------ None Fabricated ------------ Nothing Repaired ---------- Nothing Studied --------- None Alien Tech Used ----------------- None Achievements -------------- DATA ERROR: Steam Global Achievement% Organ Harvest Overwhelming Challenges ------------ None Game ------ Seed SubdwellerTimingBoomstick Manual? 0 Play Time 00:07:42 Cumulative 1.3 hours Start 2026.09.20 @ 21:46:40 End 2026.09.20 @ 21:52:56 Sessions 1 Manual Loads 0 Difficulty Rogue Special Mode None Game No. 5 Rogue 4 Adventurer 1 Explorer 0 Win Type - Total 0 Types 0/0/0/0/0/0/0/0/0/0 Lore% 0 Gallery% 3 Achievement% 3 Wizard Run 0 Options --------- Layout 0 ASCII 0 Keyboard 0 Movement Mouse Keybinds 0 Fullscreen 2 Font 18/SmallcapsGlow Map View 38x25 Zoom Use 69% Tactical HUD 0 Map Filters NONE Filters NONE Steam 1 RUN: eb4e078d-c2d8-4882-b804-542d18b70472